[Event "SixDays Budapest GM-B May 2024"]
[Site "Budapest"]
[Date "2024.05.16"]
[Round "1.1"]
[White "Lamard, Guillaume"]
[Black "Jinan Jomon"]
[Result "1-0"]
[ECO "A40"]
[WhiteElo "2504"]
[BlackElo "2380"]
[Annotator "TA"]
[PlyCount "99"]
[EventDate "2024.05.15"]
[EventType "tourn"]
[EventCountry "HUN"]
[SourceTitle "playchess.com"]
[Source "ChessBase"]
[SourceQuality "1"]
[TimeControl "40/5400+30:1800+30"]

{[%evp 16,99,25,22,28,20,37,32,30,6,12,12,38,35,26,30,25,29,17,21,31,33,51,32,28,0,51,33,35,47,37,47,47,37,29,32,27,23,31,26,26,10,24,6,26,29,62,69,183,85,184,70,69,81,56,28,28,28,28,28,28,28,35,28,35,28,28,28,35,35,234,250,29985,29986,29986,29987,29987,29988,29992,29988,29993,29989,29989,53,29990,29991]} 1. d4 {[%emt 0:00:12]} Nf6 {[%emt 0:00:24]} 2. c4 {[%emt 0:00:22]} e6 {[%emt 0:00:11]} 3. g3 {[%emt 0:00:23]} Bb4+ {[%emt 0:00:40]} 4. Nd2 {[%emt 0:00:22]} O-O {[%emt 0:02:46]} 5. Bg2 {[%emt 0:00:29]} d5 {[%emt 0:00:32]} 6. Ngf3 {[%emt 0:00:35]} b6 {[%emt 0:00:34]} 7. O-O {[%emt 0:00:28]} Bb7 {[%emt 0:00:06]} 8. Ne5 {[%emt 0:01:01]} Be7 {[%emt 0:01:15]} 9. b3 {[%emt 0:04:41]} c5 {[%emt 0:05:55]} 10. dxc5 {[%emt 0:03:09]} bxc5 {[%emt 0:07:52]} 11. Bb2 {[%emt 0:01:02]} Nbd7 {[%emt 0:12:10] White is slightly better.} 12. e3 {[%emt 0:05:08]} Nxe5 {[%emt 0:08:46]} 13. Bxe5 {[%emt 0:00:08]} Nd7 {[%emt 0:09:29]} 14. Bb2 {[%emt 0:02:09]} Bf6 {[%emt 0:00:34]} 15. Qc2 {[%emt 0:07:33]} Qb6 {[%emt 0:07:35]} 16. Rac1 {[%emt 0:03:44]} Rac8 {[%emt 0:04:51]} 17. Rfd1 {[%emt 0:02:25]} Ne5 {[%emt 0:09:26]} 18. cxd5 {[%emt 0:24:44]} exd5 {[%emt 0:01:59]} 19. Bxe5 {[%emt 0:00:40]} Bxe5 {[%emt 0:00:05]} 20. e4 {[%emt 0:00:14]} d4 {[%emt 0:09:28]} (20... Bd4 $11) 21. Nc4 {[%emt 0:07:14]} Qe6 {[%emt 0:00:14]} 22. f4 {[%emt 0:00:22]} Bc7 {[%emt 0:01:30]} 23. e5 {[%emt 0:03:04]} Ba6 {[%emt 0:01:53]} 24. Be4 {[%emt 0:01:49]} Bxc4 {[%emt 0:06:02]} 25. bxc4 {[%emt 0:02:29]} (25. Bxh7+ Kh8 26. bxc4 g6 $11) 25... g6 {[%emt 0:00:31] Black is weak on the light squares} 26. Bd5 {[%emt 0:00:33]} Qe7 {[%emt 0:02:33]} 27. Re1 {[%emt 0:03:58]} Kh8 {[%emt 0:00:55]} 28. Rb1 {[%emt 0:05:41]} Rb8 {[%emt 0:00:40]} 29. Kg2 {[%emt 0:01:25]} Rg8 {[%emt 0:02:46]} 30. h4 {[%emt 0:00:29]} Ba5 {[%emt 0:00:31]} 31. Rh1 {[%emt 0:01:18] White is more active.} Bc3 {[%emt 0:02:16]} (31... Rb6 $14) 32. Qe4 {[%emt 0:01:42]} (32. h5 $18 {and White stays clearly on top.} Rxb1 33. Rxb1 (33. Qxb1 g5 $11) 33... gxh5 34. Rb7) 32... Rgf8 {[%emt 0:00:06]} (32... Rb6 $16 {was necessary.} 33. Rxb6 axb6) 33. Kf3 {[%emt 0:05:21]} (33. Rxb8 $18 Rxb8 34. h5) 33... f5 $14 {[%emt 0:00:49]} 34. Qc2 {[%emt 0:01:03]} h5 {[%emt 0:01:33]} 35. Rb3 {[%emt 0:03:21] [#] Black must now prevent Rhb1.} Rb6 {[%emt 0:00:26]} 36. Rhb1 {[%emt 0:01:06][%cal Bh1b1,Bb1b3,Bb3a3][%mdl 32] Some like it hot} (36. Kg2 {simplifies} Qd7 37. Rxb6 axb6 38. Rb1) 36... Rfb8 {[%emt 0:00:05]} 37. Rxb6 {[%emt 0:00:13]} axb6 {[%emt 0:00:26]} 38. Qa4 {[%emt 0:00:25] Qc6 would now be deadly.} Kg7 {[%emt 0:01:01]} 39. Rb3 {[%emt 0:01:09]} (39. Qc6 {keeps more tension.} Ba5 40. Ke2 Re8 41. Kf2) 39... Qc7 {[%emt 0:00:32]} 40. Ra3 {[%emt 0:03:44]} Ba5 {[%emt 0:00:29]} 41. Qb5 {[%emt 0:30:56]} Kf8 {[%emt 0:30:26]} 42. Qa6 {[%emt 0:00:35][%cal Oa3a5] Hoping for Rxa5!} Bb4 {[%emt 0:00:36]} (42... Kg7 $14) 43. Qa7 $18 {[%emt 0:00:36]} Rb7 {[%emt 0:00:30]} (43... Rc8 $18) 44. Bxb7 {[%emt 0:01:28]} ({And not} 44. Qxb7 Qxb7 45. Bxb7 Bxa3 $11) 44... Bxa3 {[%emt 0:00:02] KQB-KQB} 45. Qa8+ {[%emt 0:00:04]} Kg7 {[%emt 0:00:32]} 46. Bd5 {[%emt 0:00:14]} Bb2 {[%emt 0:00:55]} 47. Qg8+ {[%emt 0:00:09]} Kh6 {[%emt 0:00:03]} 48. Qh8+ {[%emt 0:00:22]} Qh7 {[%emt 0:00:05]} 49. Qxh7+ {[%emt 0:00:30]} Kxh7 {[%emt 0:00:02] [#]} 50. e6 $1 {[%emt 0:00:05] Weighted Error Value: White=0.09 (flawless) /Black=0.34.  Loses game:     	---       	Black=1      Mistake:       	White=2     	Black=4      Inaccurate:     	White=2     	Black=2      OK:         	White=15    	Black=20     Best:        	White=2     	Black=1} 1-0

[Event "SixDays Budapest GM-B May 2024"]
[Site "Budapest"]
[Date "2024.05.16"]
[Round "1.2"]
[White "Borgaonkar Akshay"]
[Black "Krishnan, Ritvik"]
[Result "1/2-1/2"]
[ECO "C11"]
[WhiteElo "2374"]
[BlackElo "2298"]
[Annotator "TA"]
[PlyCount "88"]
[EventDate "2024.05.15"]
[EventType "tourn"]
[EventCountry "HUN"]
[SourceTitle "playchess.com"]
[Source "ChessBase"]
[SourceQuality "1"]
[TimeControl "40/5400+30:1800+30"]

{[%evp 14,88,41,35,41,41,17,23,28,22,22,0,0,0,62,18,67,49,46,0,0,0,0,0,0,0,0,0,0,0,0,0,0,0,0,0,0,0,0,0,0,0,7,0,6,8,8,16,7,7,15,16,83,22,68,39,36,0,0,0,1,7,7,7,7,7,7,7,7,7,7,7,7,7,7,7,7]} 1. e4 {[%emt 0:00:05]} e6 {[%emt 0:00:04]} 2. d4 {[%emt 0:00:15]} d5 {[%emt 0:00:06]} 3. Nc3 {[%emt 0:00:06]} Nf6 {[%emt 0:00:05]} 4. Bg5 {[%emt 0:00:07]} dxe4 {[%emt 0:00:04]} 5. Nxe4 {[%emt 0:00:21]} Be7 {[%emt 0:00:05]} 6. Bxf6 {[%emt 0:00:16]} gxf6 {[%emt 0:00:02]} 7. Nf3 {[%emt 0:00:54]} f5 {[%emt 0:00:02]} 8. Nc3 {[%emt 0:00:26]} a6 {[%emt 0:00:11]} 9. g3 {[%emt 0:00:26]} b5 {[%emt 0:00:09]} 10. Bg2 {[%emt 0:00:35]} Bb7 {[%emt 0:00:07][%cal Bc8b7,Bb7c6,Bc6g2][%mdl 32] White has an edge.} 11. O-O {[%emt 0:00:42][%cal Od4d5] Black should prevent d5!} O-O {[%emt 0:00:08]} 12. Qe2 {[%emt 0:01:37]} b4 {[%emt 0:06:50]} 13. Na4 {[%emt 0:01:08]} Nd7 {[%emt 0:15:09]} (13... Bc6 $1 $11 14. Nc5 Bxc5 15. dxc5 Nd7) 14. Rad1 {[%emt 0:14:16]} Qe8 {[%emt 0:14:47]} (14... Bc6 $11 {was preferrable.} 15. Nc5 Nxc5 16. dxc5 Qe8) 15. Rfe1 {[%emt 0:08:02][%cal Od4d5]} Bc6 {[%emt 0:15:33] [#]} 16. Nc5 {[%emt 0:13:41]} Nxc5 $11 {[%emt 0:05:40]} 17. dxc5 {[%emt 0:00:11]} Bxc5 {[%emt 0:12:10]} 18. Qc4 {[%emt 0:18:07]} Be7 {[%emt 0:10:33]} 19. Ng5 {[%emt 0:09:57]} Bxg2 {[%emt 0:00:09] This pair of bishops is nice.} 20. Qh4 {[%emt 0:00:08][%csl Gg5][%cal Rh4h7] [#]} Bxg5 {[%emt 0:00:14]} 21. Qxg5+ {[%emt 0:00:05]} Kh8 {[%emt 0:00:04] Threatens to win with ...f6.} 22. Qf6+ {[%emt 0:00:07]} Kg8 {[%emt 0:00:01]} 23. Kxg2 {[%emt 0:01:58] Hoping for Rd4.} Rd8 {[%emt 0:03:47]} 24. Kg1 {[%emt 0:01:18]} Rd6 {[%emt 0:03:45]} 25. Rxd6 {[%emt 0:03:13]} cxd6 {[%emt 0:00:01][%mdl 4096] Endgame. KQR-KQR} 26. Qg5+ {[%emt 0:01:16]} Kh8 {[%emt 0:00:02]} 27. Rd1 {[%emt 0:00:23]} d5 {[%emt 0:05:37]} 28. Qf6+ {[%emt 0:01:12]} Kg8 {[%emt 0:00:02]} 29. Rd4 {[%emt 0:00:15][%cal Od4h4] Rh4! would now be deadly.} Qd8 $1 {[%emt 0:00:37]} 30. Qxd8 {[%emt 0:00:44]} Rxd8 {[%emt 0:00:03]} 31. Rxb4 {[%emt 0:00:07] KR-KR} Rc8 {[%emt 0:00:27]} 32. c3 {[%emt 0:00:05]} Rc6 {[%emt 0:00:22]} (32... a5 $11 33. Ra4 Rb8) 33. f4 {[%emt 0:00:35]} (33. Kf1 $16) 33... Kg7 {[%emt 0:01:40]} (33... a5 $11 {is more appropriate.} 34. Ra4 Rb6) 34. Kf2 $1 $14 {[%emt 0:00:19]} a5 {[%emt 0:02:45]} 35. Rb5 {[%emt 0:02:04]} a4 {[%emt 0:00:14] The position is equal.} 36. a3 {[%emt 0:00:41]} d4 {[%emt 0:00:38]} 37. cxd4 {[%emt 0:01:29]} Rc2+ {[%emt 0:00:03]} 38. Kg1 {[%emt 0:00:59]} Rc1+ {[%emt 0:01:14]} 39. Kg2 {[%emt 0:01:04]} Rc2+ {[%emt 0:00:03]} 40. Kh3 {[%emt 0:01:08]} Rd2 {[%emt 0:00:28]} 41. Rb4 {[%emt 0:30:58]} Kf6 {[%emt 0:31:13]} 42. Rxa4 {[%emt 0:01:15] Rb4 is the strong threat.} Rxb2 {[%emt 0:00:01]} 43. Rc4 {[%emt 0:02:03]} Rd2 {[%emt 0:01:42]} 44. a4 {[%emt 0:00:27]} Ra2 {Weighted Error Value: White=0.08 (flawless) /Black=0.10 (very precise) .  Mistake:       	White=2     	Black=4      Inaccurate:     	White=2     	---        OK:         	White=21    	Black=14     Best:        	White=1     	Black=4      Strong:       	White=1     	Black=1} 1/2-1/2

[Event "SixDays Budapest GM-B May 2024"]
[Site "Budapest"]
[Date "2024.05.16"]
[Round "1.3"]
[White "Horvath, Adam"]
[Black "Palczert, Matyas"]
[Result "0-1"]
[ECO "C47"]
[WhiteElo "2448"]
[BlackElo "2333"]
[Annotator "TA"]
[PlyCount "80"]
[EventDate "2024.05.15"]
[EventType "tourn"]
[EventCountry "HUN"]
[SourceTitle "playchess.com"]
[Source "ChessBase"]
[SourceQuality "1"]
[TimeControl "40/5400+30:1800+30"]

{[%evp 9,80,0,0,0,8,0,18,1,23,20,13,13,16,6,25,43,25,32,70,73,64,57,62,64,109,11,10,12,12,11,13,13,42,40,32,43,38,29,31,11,21,31,60,28,33,34,36,31,50,17,9,16,123,135,297,282,276,-219,-210,-1545,-1488,-1241,-1572,-1547,-1480,-1480,-1234,-29970,-29972,-29974,-29975,-29959,-29966]} 1. e4 {[%emt 0:00:04]} e5 {[%emt 0:00:07]} 2. Nf3 {[%emt 0:00:05]} Nc6 {[%emt 0:00:06]} 3. Nc3 {[%emt 0:00:30]} Nf6 {[%emt 0:00:20]} 4. a4 {[%emt 0:00:06]} Bb4 {[%emt 0:01:04]} 5. Bd3 {[%emt 0:00:19]} O-O {[%emt 0:02:03]} 6. O-O {[%emt 0:00:40]} Re8 {[%emt 0:02:21]} 7. Re1 {[%emt 0:05:47]} h6 {[%emt 0:13:31]} 8. Nd5 {[%emt 0:13:26] The position is equal.} Bf8 {[%emt 0:02:46]} 9. c3 {[%emt 0:12:55]} d6 {[%emt 0:06:04]} 10. Bc4 {[%emt 0:05:05]} Nxd5 {[%emt 0:14:00]} 11. exd5 {[%emt 0:05:47]} e4 {[%emt 0:07:52]} 12. dxc6 {[%emt 0:06:43]} exf3 {[%emt 0:00:38]} 13. Bd5 {[%emt 0:16:53]} Rb8 {[%emt 0:03:32]} 14. Bxf3 {[%emt 0:08:09]} Rxe1+ {[%emt 0:02:00]} 15. Qxe1 {[%emt 0:00:04]} bxc6 {[%emt 0:02:12]} 16. Bxc6 {[%emt 0:02:18]} d5 {[%emt 0:02:17] [#] ...Rb6 is the strong threat.} 17. Qe8 {[%emt 0:02:03]} (17. b4 $1 $16) 17... Qxe8 $11 {[%emt 0:01:51]} 18. Bxe8 {[%emt 0:00:05]} c5 {[%emt 0:04:34]} 19. Bc6 {[%emt 0:09:01]} Be6 {[%emt 0:03:13]} 20. a5 {[%emt 0:00:59]} a6 {[%emt 0:02:16]} 21. d3 {[%emt 0:03:30]} Bd6 {[%emt 0:06:03]} 22. Kf1 {[%emt 0:01:51]} Kf8 {[%emt 0:01:32]} 23. h4 {[%emt 0:01:38]} Ke7 {[%emt 0:02:14]} 24. Ba4 {[%emt 0:00:32]} Bf5 {[%emt 0:02:30]} 25. Ke2 {[%emt 0:00:05]} Kf6 {[%emt 0:02:18]} 26. Bc6 {[%emt 0:01:38]} c4 {[%emt 0:01:06]} 27. dxc4 {[%emt 0:00:44]} dxc4 {[%emt 0:00:06]} 28. Kf3 {[%emt 0:00:30]} g5 {[%emt 0:02:57]} 29. hxg5+ {[%emt 0:00:00]} hxg5 {[%emt 0:00:06]} 30. g4 {[%emt 0:01:47]} Bd3 {[%emt 0:00:30]} (30... Be6 $1 $11) 31. Be4 $16 {[%emt 0:00:46]} Be5 $2 {[%emt 0:05:18]} (31... Ke6 $16 {might work better.} 32. Ra2 (32. Bxg5 Rxb2 33. Re1 Be5 $11) 32... Bxe4+ 33. Kxe4 Rb5) 32. Bxd3 $18 {[%emt 0:01:52]} cxd3 {[%emt 0:00:02][%mdl 4096] Endgame. KRB-KRB} 33. Ke3 {[%emt 0:00:35][%mdl 8192]} (33. Ke4 $18 {is the narrow road to win.}) 33... Rd8 $19 {[%emt 0:00:47][%cal Od3d2]} 34. Bd2 $2 {[%emt 0:00:30]} (34. b4 d2 (34... Bxc3 35. Ra2 $17) 35. Bxd2 Bf4+ 36. Ke4 Bxd2 (36... Rxd2 37. b5 $19) 37. Rd1) 34... Bf4+ {[%emt 0:00:09]} 35. Ke4 {[%emt 0:00:02]} Bxd2 {[%emt 0:00:14]} 36. Rd1 {[%emt 0:00:02] [#]} Be1 $1 {[%emt 0:01:01][%mdl 512]} 37. f3 {[%emt 0:00:23]} (37. b3 Bxc3) 37... d2 {[%emt 0:00:22]} 38. f4 {[%emt 0:00:04]} gxf4 {[%emt 0:00:24] Black mates.} 39. Kxf4 {[%emt 0:00:04]} Rb8 {[%emt 0:00:10]} 40. b4 {[%emt 0:00:09]} Rc8 {[%emt 0:00:13] Weighted Error Value: White=0.66/Black=0.21 (precise) .  Loses game:     	---       	Black=1      Missed win:     	White=1     	---        Mistake:       	White=2     	Black=1      Inaccurate:     	White=2     	Black=4      OK:         	White=14    	Black=8      Best:        	White=2     	Black=4} 0-1

[Event "SixDays Budapest GM-B May 2024"]
[Site "Budapest"]
[Date "2024.05.16"]
[Round "1.4"]
[White "Lu, Maximillian"]
[Black "Stefansson, Vignir Vatnar"]
[Result "0-1"]
[ECO "D35"]
[WhiteElo "2373"]
[BlackElo "2463"]
[Annotator "TA"]
[PlyCount "88"]
[EventDate "2024.05.15"]
[EventType "tourn"]
[EventCountry "HUN"]
[SourceTitle "playchess.com"]
[Source "ChessBase"]
[SourceQuality "1"]
[TimeControl "40/5400+30:1800+30"]

{[%evp 15,88,8,8,4,22,20,25,19,27,31,41,16,33,12,20,21,23,11,12,15,8,0,0,-83,-83,-69,-80,-61,-66,-72,-71,-108,-89,-87,-105,-100,-107,-106,-106,-103,-34,-23,-31,-29,-37,-25,0,-59,-34,-97,-4,-27,-20,-235,-223,-225,-235,-213,-70,-53,-60,-136,-127,-159,-158,-147,-143,-298,-268,-438,-329,-296,-308,-29982,-29983]} 1. c4 {[%emt 0:00:02]} e6 {[%emt 0:00:30]} 2. Nc3 {[%emt 0:00:12]} d5 {[%emt 0:00:07]} 3. d4 {[%emt 0:00:07]} Nf6 {[%emt 0:00:16]} 4. cxd5 {[%emt 0:00:15]} exd5 {[%emt 0:00:46]} 5. Bg5 {[%emt 0:00:05][%cal Bc1g5,Bg5h4,Bh4g3][%mdl 32]} c6 {[%emt 0:00:14]} 6. e3 {[%emt 0:00:06]} h6 {[%emt 0:00:06]} 7. Bh4 {[%emt 0:00:06]} Be7 {[%emt 0:00:09]} 8. Bd3 {[%emt 0:00:04]} O-O {[%emt 0:00:10]} 9. Nge2 {[%emt 0:00:35]} Ne8 {[%emt 0:00:13]} 10. Bg3 {[%emt 0:03:40]} Nd6 {[%emt 0:00:08]} 11. Qc2 {[%emt 0:02:09] White has an edge.} Re8 {[%emt 0:00:29]} 12. O-O {[%emt 0:00:22]} Bf8 {[%emt 0:00:07]} 13. Rae1 {[%emt 0:05:21]} a5 {[%emt 0:00:07]} 14. Nc1 {[%emt 0:02:56]} Na6 {[%emt 0:03:38]} 15. a3 {[%emt 0:00:07] Prevents Nb4.} Bd7 {[%emt 0:01:38]} 16. Nb3 {[%emt 0:11:09]} b5 {[%emt 0:11:19][%cal Bb7b5,Bb5b4][%mdl 32]} 17. Nd2 {[%emt 0:16:36]} b4 {[%emt 0:04:24]} 18. Ncb1 {[%emt 0:16:10]} Qb6 {[%emt 0:07:48]} 19. Nf3 {[%emt 0:07:15]} (19. Rc1 $11 {remains equal.}) 19... c5 $17 {[%emt 0:10:50]} 20. Bxa6 {[%emt 0:10:08]} Qxa6 {[%emt 0:00:21]} 21. Bxd6 {[%emt 0:00:01]} Bxd6 {[%emt 0:03:37]} ({Don't play} 21... Qxd6 22. dxc5 Qxc5 23. Qxc5 Bxc5 24. Rd1 $17) 22. dxc5 {[%emt 0:00:01]} Rac8 {[%emt 0:00:30] And now ...Bb5 would win.} 23. Qd2 {[%emt 0:00:11]} Bxc5 {[%emt 0:00:44] Threatens to win with ...Bb5. Black has more active pieces. White is weak on the light squares} 24. Rc1 {[%emt 0:00:12]} Bb5 {[%emt 0:03:34][%cal Bd7b5,Bb5d3,Bd3e4][%mdl 32]} 25. Rfe1 {[%emt 0:00:31]} Bd3 {[%emt 0:02:09]} 26. axb4 {[%emt 0:03:31]} axb4 {[%emt 0:03:31]} 27. Qd1 {[%emt 0:00:07]} Bb6 {[%emt 0:07:13]} (27... Be7 $17 {...Rxc1 would now be deadly.} 28. Qb3 Bc4) 28. Rxc8 $15 {[%emt 0:06:19]} Rxc8 {[%emt 0:00:09]} 29. Ne5 {[%emt 0:00:01]} Be4 $36 {[%emt 0:00:25][%mdl 2048] Strongly threatening ...Qa2. Black has the initiative. This pair of bishops is nice.} 30. Nd2 {[%emt 0:00:20]} Bc2 {[%emt 0:00:49]} 31. Qf3 {[%emt 0:02:04]} (31. Qg4 $1 $11) 31... Qb7 {[%emt 0:01:16]} 32. Rc1 {[%emt 0:03:40]} ({Better is} 32. Qg4 $15) 32... Rc7 {[%emt 0:04:44]} (32... Bd8 $1 $17 {...Bf6 is the strong threat.} 33. Qf4 Bf6) 33. h4 {[%emt 0:03:14]} b3 {[%emt 0:01:00]} 34. Ra1 $2 {[%emt 0:04:56]} (34. Qf4 $11 {and White is okay.}) 34... Re7 $1 $19 {[%emt 0:05:36]} 35. Ng4 {[%emt 0:00:51]} f5 {[%emt 0:06:23]} 36. Nh2 {[%emt 0:00:20] [#]} d4 {[%emt 0:00:36]} (36... Bc7 $1 $19 {[%cal Rc7e5] Hoping for ...Be5.} 37. Qe2 Be5) 37. Qxb7 $15 {[%emt 0:01:56]} Rxb7 {[%emt 0:00:11]} 38. Ra8+ {[%emt 0:00:14]} (38. Nhf1 $15) 38... Kh7 $17 {[%emt 0:00:37]} 39. Nc4 {[%emt 0:00:19]} dxe3 {[%emt 0:00:33]} 40. fxe3 {[%emt 0:00:08] [#]} Ba7 $1 {[%emt 0:01:02] White must now prevent ...Bd3.} 41. Kf2 $2 {[%emt 0:31:56]} (41. Nf1 $17 {was worth a try.}) 41... Rc7 $19 {[%emt 0:32:06]} 42. Nd6 {[%emt 0:00:11]} (42. Nd2 {is the only way for White.}) 42... f4 {[%emt 0:01:01]} 43. Ng4 {[%emt 0:02:10]} Bd1 {[%emt 0:00:40]} 44. Rc8 $2 {[%emt 0:01:17]} (44. Rxa7 $19 Rxa7 45. Ne5) 44... Rc2+ {[%emt 0:01:51] Weighted Error Value: White=0.42/Black=0.16 (very precise) .  Loses game:     	White=1     	---        Mistake:       	White=7     	Black=3      Inaccurate:     	White=1     	---        OK:         	White=13    	Black=15     Best:        	White=4     	Black=4      Strong:       	---       	Black=2} 0-1

[Event "SixDays Budapest GM-B May 2024"]
[Site "Budapest"]
[Date "2024.05.16"]
[Round "1.5"]
[White "Fodor, Tamas Jr."]
[Black "Kuru, Atilla"]
[Result "1-0"]
[ECO "D10"]
[WhiteElo "2486"]
[BlackElo "2313"]
[Annotator "TA"]
[PlyCount "105"]
[EventDate "2024.05.15"]
[EventType "tourn"]
[EventCountry "HUN"]
[SourceTitle "playchess.com"]
[Source "ChessBase"]
[SourceQuality "1"]
[TimeControl "40/5400+30:1800+30"]

{[%evp 9,105,10,10,35,10,12,33,11,20,16,19,27,17,31,28,26,13,28,10,0,25,32,25,0,10,-8,2,-41,-44,-68,-61,-72,-61,-84,-54,-59,-36,-31,-25,-36,-34,-40,-34,-35,-29,-46,0,0,0,0,0,-7,71,70,117,114,127,127,122,122,128,127,132,128,142,141,293,274,318,215,217,201,187,197,342,335,492,488,1189,1150,973,965,5197,3966,9560,9382,29975,29976,29975,29976,29977,29977,29977,29978,29979,29980,29977,29978]} 1. d4 {[%emt 0:00:06]} d5 {[%emt 0:09:24][%cal Bd7d5,Bd5c4][%mdl 32]} 2. c4 {[%emt 0:00:13]} c6 {[%emt 0:00:03]} 3. Nc3 {[%emt 0:00:13][%cal Bb1c3,Bc3e4,Be4d2][%mdl 32]} dxc4 {[%emt 0:00:07]} 4. e3 {[%emt 0:00:50]} b5 {[%emt 0:00:09][%cal Bb7b5,Bb5b4,Bb4c3][%mdl 32]} 5. a4 {[%emt 0:00:18]} b4 {[%emt 0:00:05]} 6. Ne4 {[%emt 0:00:13]} Qd5 {[%emt 0:00:04]} 7. Nd2 {[%emt 0:00:16]} c3 {[%emt 0:00:06]} 8. bxc3 {[%emt 0:00:05] White is slightly better.} bxc3 {[%emt 0:00:05]} 9. Nb1 {[%emt 0:00:09]} Qa5 {[%emt 0:00:04]} 10. Qc2 {[%emt 0:00:08][%cal Oc1a3]} Na6 {[%emt 0:01:25] Strongly threatening ...Nb4.} 11. Qxc3 {[%emt 0:02:06]} (11. Nxc3 Nb4 12. Qb1 Rb8 $14 (12... Nd5 13. Bd2 $16)) 11... Nb4 {[%emt 0:00:34] White must now prevent ...Nc2+.} 12. Bd2 {[%emt 0:00:16]} e6 {[%emt 0:00:30]} 13. Nf3 {[%emt 0:00:58]} Nf6 {[%emt 0:01:28]} 14. Bc4 {[%emt 0:00:07]} Bd6 {[%emt 0:04:06]} 15. O-O {[%emt 0:05:50]} O-O {[%emt 0:01:15]} 16. Qc1 {[%emt 0:01:43]} Qf5 {[%emt 0:05:14]} 17. a5 {[%emt 0:01:49]} c5 {[%emt 0:03:28]} 18. Bxb4 {[%emt 0:02:59]} cxb4 {[%emt 0:00:07]} 19. Nbd2 {[%emt 0:00:07]} Bb7 {[%emt 0:01:29] Dodges e4} 20. Qb1 {[%emt 0:04:07]} Qxb1 {[%emt 0:11:31]} 21. Rfxb1 {[%emt 0:00:25]} Rfc8 {[%emt 0:00:36]} 22. Ne5 {[%emt 0:13:25]} Ne4 {[%emt 0:03:50]} 23. a6 $1 {[%emt 0:01:21]} Bd5 {[%emt 0:00:09] A strong pair of Bishops.} 24. Nxe4 {[%emt 0:05:35]} Bxe4 {[%emt 0:01:26]} 25. Bd3 {[%emt 0:00:22]} Bxd3 {[%emt 0:01:17]} 26. Nxd3 {[%emt 0:00:06]} Rab8 {[%emt 0:00:07]} 27. Rb3 {[%emt 0:01:10]} Rc3 {[%emt 0:03:17]} 28. Rxc3 {[%emt 0:05:59]} bxc3 $11 {[%emt 0:00:09][%mdl 4096] Endgame. KRB-KRN} 29. Kf1 {[%emt 0:00:35]} c2 {[%emt 0:03:07] ...Rb1+ is the strong threat.} (29... Bxh2 30. g3 $18) 30. Rc1 {[%emt 0:01:30]} Rb6 {[%emt 0:05:49]} (30... Rb1 $11 {keeps the balance.} 31. Ke2 Rb6 (31... Bxh2 32. Rxc2 g6 33. Rc8+ Kg7 34. Ra8 $18) (31... Rxc1 32. Nxc1 Bxh2 33. f4 $11)) 31. Rxc2 $16 {[%emt 0:00:49] Threatens to win with Rc8+.} Rxa6 {[%emt 0:00:05]} (31... f6 $14) 32. Rc8+ {[%emt 0:00:28]} Bf8 {[%emt 0:00:02]} 33. Nc5 {[%emt 0:00:23]} Rd6 {[%emt 0:00:09][%cal Oe6e5]} 34. Ra8 {[%emt 0:02:14] White is more active.} Rd5 {[%emt 0:02:53]} 35. Ke2 {[%emt 0:00:15]} g6 {[%emt 0:00:36]} 36. Kd3 $1 {[%emt 0:01:06]} ({Much worse is} 36. Rxa7 $6 Bxc5 37. dxc5 Rxc5 $11) 36... Kg7 {[%emt 0:01:13] [#]} 37. Kc4 {[%emt 0:00:07]} Rg5 $2 {[%emt 0:04:40] [#] Loses the game.} (37... a5 $16 {was necessary.} 38. Rxa5 Rh5) 38. g3 $1 $18 {[%emt 0:01:01]} (38. Rxa7 Rxg2 39. Nxe6+ Kg8 40. Nxf8 Kxf8 $11) 38... Rh5 {[%emt 0:00:51]} 39. h4 {[%emt 0:00:29]} g5 {[%emt 0:00:24]} 40. hxg5 {[%emt 0:01:07]} Rxg5 {[%emt 0:00:26]} 41. Rxa7 {[%emt 0:30:37]} Kg6 {[%emt 0:30:36]} (41... Bxc5 42. dxc5 Rf5 43. Ra2 $18) (41... Rg6 $142 42. Ne4 h5) 42. Nd3 {[%emt 0:02:08]} Bd6 {[%emt 0:01:54] Inhibits Ne5+.} (42... Kg7 $142 43. e4 Kg8) 43. e4 {[%emt 0:00:53][%cal Be3e4,Be4e5][%mdl 32] And now e5 would win.} Rg4 {[%emt 0:06:57]} (43... Kg7 $142 44. Rd7 Bf8) 44. e5 {[%emt 0:00:16]} Bf8 {[%emt 0:03:08]} 45. Nf4+ {[%emt 0:00:14]} Rxf4 {[%emt 0:00:11]} 46. gxf4 {[%emt 0:00:05] KR-KB} Bh6 {[%emt 0:00:08]} 47. d5 {[%emt 0:00:50] White threatens d6 and mate.} exd5+ {[%emt 0:00:11]} 48. Kxd5 {[%emt 0:00:05] White mates.} Bxf4 {[%emt 0:00:05]} 49. Ke4 {[%emt 0:00:05]} Bc1 {[%emt 0:00:45]} 50. f4 {[%emt 0:00:09]} f5+ {[%emt 0:00:05]} 51. Kf3 {[%emt 0:00:13]} h5 {[%emt 0:00:11]} 52. Ra6+ {[%emt 0:00:04]} Kg7 {[%emt 0:00:06]} 53. Rf6 {[%emt 0:00:04] Weighted Error Value: White=0.07 (flawless) /Black=0.34.  Mistake:       	---       	Black=6      Inaccurate:     	White=2     	Black=2      OK:         	White=19    	Black=11     Best:        	White=3     	Black=2      Strong:       	White=3     	---} 1-0